[Event "Guimaraes Open 2019"]
[Site "Guimaraes"]
[Date "2019.08.29"]
[Round "2.33"]
[White "Hernandez Torralba, Jose Joaquin"]
[Black "Barrento, Jorge Maria Lopes"]
[Result "1/2-1/2"]
[ECO "B01"]
[WhiteElo "2061"]
[BlackElo "1745"]
[Annotator "NA"]
[PlyCount "128"]
[EventDate "2019.08.28"]
[EventType "swiss"]
[EventCountry "POR"]
[SourceTitle "playchess.com"]
[Source "ChessBase"]
[SourceQuality "1"]
[TimeControl "5400+30"]

1. e4 {[%emt 0:00:00]} d5 {[%emt 0:04:51]} 2. exd5 {[%emt 0:00:17]} Nf6 {[%emt 0:00:08]} 3. d4 {[%emt 0:00:17]} Bg4 {[%emt 0:00:05]} 4. Nf3 {[%emt 0:03:32]} Qxd5 {[%emt 0:00:51]} 5. Be2 {[%emt 0:01:22]} e6 {[%emt 0:02:31]} 6. O-O {[%emt 0:03:45]} Nc6 {[%emt 0:03:23]} 7. Bf4 {[%emt 0:17:27]} Qd7 {[%emt 0:07:12]} 8. h3 {[%emt 0:05:43]} Bh5 {[%emt 0:07:10]} 9. c3 {[%emt 0:01:03]} Be7 {[%emt 0:07:56]} 10. b4 {[%emt 0:04:41]} a6 {[%emt 0:02:13]} 11. Na3 {[%emt 0:07:02]} Nd5 {[%emt 0:04:42]} 12. Bd2 {[%emt 0:00:09]} O-O {[%emt 0:00:11]} 13. Nc4 {[%emt 0:01:42]} Bf6 {[%emt 0:07:54]} 14. a3 {[%emt 0:01:43]} Rfe8 {[%emt 0:04:26]} 15. Re1 {[%emt 0:01:02]} Rad8 {[%emt 0:05:44]} 16. Qb3 {[%emt 0:02:52]} Qc8 {[%emt 0:01:04]} 17. Rad1 {[%emt 0:00:51]} Nde7 {[%emt 0:03:22]} 18. Nce5 {[%emt 0:04:34]} Bxe5 {[%emt 0:03:59]} 19. dxe5 {[%emt 0:01:20]} Rd7 {[%emt 0:01:37]} 20. g4 {[%emt 0:06:10]} Bg6 {[%emt 0:00:35]} 21. c4 {[%emt 0:08:23]} Red8 {[%emt 0:02:22]} 22. Bc3 {[%emt 0:01:37]} Bd3 {[%emt 0:02:22]} 23. Bf1 {[%emt 0:07:48]} Bxf1 {[%emt 0:00:33]} 24. Kxf1 {[%emt 0:00:04]} Ng6 {[%emt 0:00:49]} 25. Qc2 {[%emt 0:03:38]} Nf4 {[%emt 0:02:20]} 26. Bd2 {[%emt 0:03:07]} Ng6 {[%emt 0:01:41]} 27. h4 {[%emt 0:02:48]} Nd4 {[%emt 0:00:49]} 28. Nxd4 {[%emt 0:00:19]} Rxd4 {[%emt 0:00:03]} 29. h5 {[%emt 0:00:09]} Nf8 {[%emt 0:02:37]} 30. Bg5 {[%emt 0:05:10]} R8d7 {[%emt 0:01:32]} 31. h6 {[%emt 0:03:21]} Ng6 {[%emt 0:01:12]} 32. hxg7 {[%emt 0:01:18]} Rxg4 {[%emt 0:00:38]} 33. Rxd7 {[%emt 0:01:26]} Qxd7 {[%emt 0:00:07]} 34. Rd1 {[%emt 0:00:46]} Rd4 {[%emt 0:00:02]} 35. Re1 {[%emt 0:00:37]} Qc6 {[%emt 0:04:33]} 36. Be3 {[%emt 0:00:10]} Rxc4 {[%emt 0:00:47]} 37. Qd3 {[%emt 0:00:30]} Kxg7 {[%emt 0:01:38]} 38. Qd8 {[%emt 0:01:07]} Nxe5 {[%emt 0:02:59]} 39. Qg5+ {[%emt 0:00:39]} Ng6 {[%emt 0:00:28]} 40. Qh6+ {[%emt 0:00:08]} Kg8 {[%emt 0:01:11]} 41. Rd1 {[%emt 0:00:13]} Qe8 {[%emt 0:00:31]} 42. Bg5 {[%emt 0:00:18]} Ne7 {[%emt 0:01:59]} 43. Rd3 {[%emt 0:01:18]} Rg4 {[%emt 0:01:20]} 44. Qh5 {[%emt 0:00:43]} Qb5 {[%emt 0:01:02]} 45. Qxg4 {[%emt 0:00:41]} Qxd3+ {[%emt 0:00:02]} 46. Kg1 {[%emt 0:00:05]} Qf5 {[%emt 0:01:56]} 47. Qg3 {[%emt 0:00:08]} Ng6 {[%emt 0:00:34]} 48. Be3 {[%emt 0:00:39]} Qb1+ {[%emt 0:01:19]} 49. Kh2 {[%emt 0:00:11]} Qe4 {[%emt 0:00:43]} 50. Kg1 {[%emt 0:00:51]} Qb1+ {[%emt 0:00:41]} 51. Kh2 {[%emt 0:00:20]} Qe4 {[%emt 0:00:03]} 52. Kg1 {[%emt 0:00:50]} Qe5 {[%emt 0:00:00]} 53. Qg2 {[%emt 0:00:29]} c6 {[%emt 0:00:00]} 54. Qg4 {[%emt 0:00:45]} Qf5 {[%emt 0:01:02]} 55. Qd4 {[%emt 0:00:21]} h5 {[%emt 0:00:24]} 56. Kf1 {[%emt 0:00:39]} Qg4 {[%emt 0:00:41]} 57. Qd7 {[%emt 0:00:20]} h4 {[%emt 0:01:18]} 58. Bd4 {[%emt 0:00:41]} Qd1+ {[%emt 0:00:29]} 59. Kg2 {[%emt 0:00:04]} h3+ {[%emt 0:00:42]} 60. Kxh3 {[%emt 0:00:55]} Qf3+ {[%emt 0:00:13]} 61. Kh2 {[%emt 0:00:04]} e5 {[%emt 0:00:46]} 62. Be3 {[%emt 0:01:02]} Nf4 {[%emt 0:00:33]} 63. Qe8+ {[%emt 0:00:06]} Kh7 {[%emt 0:01:07]} 64. Qxf7+ {[%emt 0:00:11]} Kh8 {[%emt 0:00:38]} 1/2-1/2

[Event "Guimaraes Open 2019"]
[Site "Guimaraes"]
[Date "2019.08.29"]
[Round "2.34"]
[White "Santos, Jose Miguel Sereno"]
[Black "Sismeiro, Miguel"]
[Result "1/2-1/2"]
[ECO "B40"]
[WhiteElo "1749"]
[BlackElo "2054"]
[Annotator "NA"]
[PlyCount "126"]
[EventDate "2019.08.28"]
[EventType "swiss"]
[EventCountry "POR"]
[SourceTitle "playchess.com"]
[Source "ChessBase"]
[SourceQuality "1"]
[TimeControl "5400+30"]

1. e4 {[%emt 0:00:00]} c5 {[%emt 0:00:46]} 2. Nf3 {[%emt 0:00:00]} e6 {[%emt 0:00:11]} 3. c3 {[%emt 0:00:46]} Nf6 {[%emt 0:01:01]} 4. e5 {[%emt 0:00:29]} Nd5 {[%emt 0:00:05]} 5. d4 {[%emt 0:01:29]} cxd4 {[%emt 0:00:04]} 6. cxd4 {[%emt 0:00:32]} d6 {[%emt 0:00:13]} 7. Bb5+ {[%emt 0:00:53]} Bd7 {[%emt 0:08:03]} 8. Bxd7+ {[%emt 0:00:09]} Qxd7 {[%emt 0:10:33]} 9. O-O {[%emt 0:00:56]} Nc6 {[%emt 0:02:19]} 10. a3 {[%emt 0:05:04]} dxe5 {[%emt 0:03:57]} 11. Nxe5 {[%emt 0:00:24]} Qc7 {[%emt 0:17:01]} 12. Nxc6 {[%emt 0:08:24]} Qxc6 {[%emt 0:01:24]} 13. Bd2 {[%emt 0:02:01]} Be7 {[%emt 0:02:41]} 14. Nc3 {[%emt 0:00:12]} Nxc3 {[%emt 0:02:59]} 15. Bxc3 {[%emt 0:00:08]} Qd5 {[%emt 0:02:51]} 16. Rc1 {[%emt 0:06:18]} O-O {[%emt 0:17:11]} 17. Qe2 {[%emt 0:04:13]} Rac8 {[%emt 0:03:32]} 18. Rfd1 {[%emt 0:08:16]} Rfd8 {[%emt 0:04:18]} 19. Qe5 {[%emt 0:24:03]} Bf6 {[%emt 0:08:24]} 20. Qxd5 {[%emt 0:06:48]} Rxd5 {[%emt 0:00:02]} 21. Kf1 {[%emt 0:00:51]} h5 {[%emt 0:02:05]} 22. Ke2 {[%emt 0:01:03]} Rcd8 {[%emt 0:03:06]} 23. g3 {[%emt 0:03:08]} g5 {[%emt 0:03:37]} 24. f3 {[%emt 0:01:02]} Kh7 {[%emt 0:00:32]} 25. Rd2 {[%emt 0:01:59]} Kg6 {[%emt 0:00:14]} 26. Ke3 {[%emt 0:00:54]} R8d7 {[%emt 0:00:09]} 27. Rcd1 {[%emt 0:00:40]} Bd8 {[%emt 0:00:37]} 28. Rd3 {[%emt 0:01:02]} Bb6 {[%emt 0:00:10]} 29. Ke2 {[%emt 0:00:09]} f5 {[%emt 0:03:00]} 30. Re3 {[%emt 0:00:57]} Kf6 {[%emt 0:00:09]} 31. Re5 {[%emt 0:00:11]} Bc7 {[%emt 0:02:32]} 32. Rxd5 {[%emt 0:00:24]} Rxd5 {[%emt 0:00:03]} 33. Kf2 {[%emt 0:06:04]} Bb6 {[%emt 0:00:32]} 34. Ke2 {[%emt 0:00:10]} Kf7 {[%emt 0:00:45]} 35. Rd3 {[%emt 0:01:14]} Ke8 {[%emt 0:00:30]} 36. Re3 {[%emt 0:01:08]} Kd7 {[%emt 0:00:04]} 37. Re5 {[%emt 0:01:29]} Rxe5+ {[%emt 0:00:16]} 38. dxe5 {[%emt 0:00:04]} Kc6 {[%emt 0:00:05]} 39. h3 {[%emt 0:00:49]} Kd5 {[%emt 0:00:11]} 40. b3 {[%emt 0:02:31]} Bd4 {[%emt 0:00:56]} 41. Be1 {[%emt 0:01:00]} Bxe5 {[%emt 0:00:22]} 42. Kd3 {[%emt 0:00:05]} Bd6 {[%emt 0:00:26]} 43. a4 {[%emt 0:00:33]} e5 44. Bf2 {[%emt 0:00:32]} e4+ {[%emt 0:00:41]} 45. fxe4+ {[%emt 0:01:31]} fxe4+ {[%emt 0:00:03]} 46. Ke2 {[%emt 0:00:10]} a6 {[%emt 0:00:12]} 47. g4 {[%emt 0:01:09]} hxg4 {[%emt 0:02:20]} 48. hxg4 {[%emt 0:00:06]} Bf4 {[%emt 0:00:31]} 49. Bb6 {[%emt 0:00:29]} Kc6 {[%emt 0:00:42]} 50. Bd4 {[%emt 0:00:18]} Kd5 {[%emt 0:00:28]} 51. Bb6 {[%emt 0:00:12]} Ke5 {[%emt 0:00:46]} 52. Bf2 {[%emt 0:01:37]} Bc1 {[%emt 0:00:42]} 53. Kd1 {[%emt 0:00:20]} Bb2 {[%emt 0:00:28]} 54. Be3 {[%emt 0:00:13]} Kf6 {[%emt 0:00:33]} 55. Ke2 {[%emt 0:00:31]} Be5 {[%emt 0:00:27]} 56. Bb6 {[%emt 0:00:16]} Ke6 {[%emt 0:00:21]} 57. Bd8 {[%emt 0:00:32]} Kd5 {[%emt 0:00:28]} 58. Bxg5 {[%emt 0:00:11]} Bd4 {[%emt 0:01:33]} 59. Be3 {[%emt 0:00:35]} Bb2 {[%emt 0:00:05]} 60. Bb6 {[%emt 0:01:40]} Bc1 {[%emt 0:00:35]} 61. Be3 {[%emt 0:00:26]} Bb2 {[%emt 0:00:06]} 62. Bb6 {[%emt 0:00:04]} Bc1 {[%emt 0:00:18]} 63. Be3 {[%emt 0:00:16]} Bb2 {[%emt 0:00:12]} 1/2-1/2

[Event "Guimaraes Open 2019"]
[Site "Guimaraes"]
[Date "2019.08.29"]
[Round "2.35"]
[White "Nunes, Eduardo"]
[Black "Teixeira, Jose Manuel"]
[Result "1-0"]
[ECO "C44"]
[WhiteElo "1566"]
[BlackElo "1361"]
[Annotator "NA"]
[PlyCount "83"]
[EventDate "2019.08.28"]
[EventType "swiss"]
[EventCountry "POR"]
[SourceTitle "playchess.com"]
[Source "ChessBase"]
[SourceQuality "1"]
[TimeControl "5400+30"]

1. e4 {[%emt 0:00:00]} e5 {[%emt 0:00:00]} 2. Nf3 {[%emt 0:00:00]} Nc6 {[%emt 0:04:36]} 3. d4 {[%emt 0:02:56]} d6 {[%emt 0:00:30]} 4. dxe5 {[%emt 0:00:30]} dxe5 {[%emt 0:00:30]} 5. Qxd8+ {[%emt 0:00:30]} Kxd8 6. a3 Bg4 {[%emt 0:00:29]} 7. Be3 {[%emt 0:05:34]} Bxf3 {[%emt 0:01:54]} 8. gxf3 {[%emt 0:00:08]} Nf6 {[%emt 0:01:25]} 9. Nc3 {[%emt 0:00:39]} Bd6 {[%emt 0:03:05]} 10. Rg1 {[%emt 0:02:48]} Nh5 {[%emt 0:01:36]} 11. O-O-O {[%emt 0:04:31]} a6 {[%emt 0:03:36]} 12. Bc5 {[%emt 0:02:23]} g6 {[%emt 0:09:27]} 13. Bxd6 {[%emt 0:02:08]} cxd6 {[%emt 0:01:43]} 14. Rxd6+ {[%emt 0:00:36]} Ke7 {[%emt 0:00:30]} 15. Rd3 {[%emt 0:03:49]} Nf4 {[%emt 0:01:03]} 16. Nd5+ {[%emt 0:00:41]} Kf8 {[%emt 0:02:45]} 17. Nxf4 {[%emt 0:00:39]} exf4 {[%emt 0:00:32]} 18. Be2 {[%emt 0:02:41]} Ne5 {[%emt 0:00:31]} 19. Rd5 {[%emt 0:00:32]} f6 {[%emt 0:01:00]} 20. Rgd1 {[%emt 0:00:33]} Ke7 {[%emt 0:00:19]} 21. b3 {[%emt 0:03:00]} Rhd8 {[%emt 0:02:27]} 22. c4 {[%emt 0:02:50]} b6 23. Kb2 g5 {[%emt 0:02:01]} 24. Kc3 {[%emt 0:03:27]} Rac8 {[%emt 0:04:05]} 25. Rxd8 {[%emt 0:04:56]} Rxd8 {[%emt 0:00:24]} 26. Rxd8 {[%emt 0:00:08]} Kxd8 {[%emt 0:00:30]} 27. Kd4 {[%emt 0:00:30]} Kd7 {[%emt 0:00:37]} 28. Kd5 {[%emt 0:00:29]} h5 {[%emt 0:01:28]} 29. h3 {[%emt 0:00:27]} Nc6 30. b4 {[%emt 0:05:59]} Ne7+ {[%emt 0:04:18]} 31. Kd4 {[%emt 0:00:21]} Ke6 {[%emt 0:03:48]} 32. b5 {[%emt 0:01:48]} a5 33. c5 {[%emt 0:01:52]} Nc8 {[%emt 0:06:20]} 34. cxb6 {[%emt 0:00:30]} Nd6 35. Kc5 {[%emt 0:01:25]} Kd7 {[%emt 0:03:53]} 36. Kd5 {[%emt 0:01:06]} Nb7 37. e5 fxe5 {[%emt 0:03:08]} 38. Kxe5 {[%emt 0:00:37]} Nc5 {[%emt 0:06:55]} 39. Kf5 {[%emt 0:00:45]} Ne6 {[%emt 0:01:56]} 40. b7 {[%emt 0:00:58]} Nd4+ {[%emt 0:00:25]} 41. Ke5 {[%emt 0:00:18]} Nxe2 {[%emt 0:06:11]} 42. b8=Q {[%emt 0:00:18]} 1-0

[Event "Guimaraes Open 2019"]
[Site "Guimaraes"]
[Date "2019.08.29"]
[Round "3.4"]
[White "Schou, Bjorn A"]
[Black "Lopez Diaz, Pablo"]
[Result "1-0"]
[ECO "E91"]
[WhiteElo "1257"]
[BlackElo "1340"]
[Annotator "NA RC"]
[PlyCount "65"]
[EventDate "2019.08.28"]
[EventType "swiss"]
[EventCountry "POR"]
[SourceTitle "playchess.com"]
[Source "ChessBase"]
[SourceQuality "1"]
[TimeControl "5400+30"]

1. d4 {[%emt 0:00:00]} Nf6 {[%emt 0:00:00]} 2. c4 {[%emt 0:00:00]} g6 {[%emt 0:00:00]} 3. Nc3 {[%emt 0:00:00]} Bg7 {[%emt 0:00:07]} 4. Nf3 {[%emt 0:00:46]} O-O {[%emt 0:01:18]} 5. e4 {[%emt 0:00:10]} d6 {[%emt 0:00:27]} 6. Be2 {[%emt 0:00:08]} c5 {[%emt 0:02:31]} 7. d5 {[%emt 0:00:57]} Nbd7 {[%emt 0:08:27]} 8. h3 {[%emt 0:00:32]} Ne5 {[%emt 0:03:15]} 9. Nh2 {[%emt 0:01:05]} b6 {[%emt 0:10:24]} 10. O-O {[%emt 0:00:59]} h6 {[%emt 0:03:20]} 11. f4 {[%emt 0:00:38]} Ned7 {[%emt 0:02:30]} 12. Be3 {[%emt 0:00:04]} Nh7 {[%emt 0:03:09]} 13. Qd2 {[%emt 0:00:30]} f6 {[%emt 0:09:13]} 14. Bg4 {[%emt 0:01:24]} f5 {[%emt 0:04:19]} 15. Bf3 {[%emt 0:00:10]} Ba6 {[%emt 0:02:51]} 16. exf5 {[%emt 0:00:38]} gxf5 {[%emt 0:00:56]} 17. Be2 {[%emt 0:00:04]} Ndf6 {[%emt 0:02:00]} 18. Bd3 {[%emt 0:00:05]} Qd7 {[%emt 0:05:39]} 19. Qc2 {[%emt 0:00:39]} e6 {[%emt 0:04:27]} 20. Rfe1 {[%emt 0:00:15]} exd5 {[%emt 0:04:56]} 21. Bxf5 {[%emt 0:00:13]} Qb7 {[%emt 0:04:57]} 22. cxd5 {[%emt 0:01:38]} Rae8 {[%emt 0:01:58]} 23. Nf3 {[%emt 0:00:24]} b5 {[%emt 0:03:42]} 24. Be6+ {[%emt 0:00:27]} Kh8 {[%emt 0:00:22]} 25. Nh4 {[%emt 0:00:58]} Rxe6 {[%emt 0:02:04]} 26. dxe6 {[%emt 0:00:04]} Re8 {[%emt 0:00:43]} 27. Bf2 {[%emt 0:01:40]} b4 {[%emt 0:01:28]} 28. Nd1 {[%emt 0:05:32]} Qc6 {[%emt 0:01:26]} 29. Ne3 {[%emt 0:01:57]} Rxe6 {[%emt 0:01:52]} 30. Ng6+ {[%emt 0:03:00]} Kg8 {[%emt 0:00:24]} 31. Nf5 {[%emt 0:00:08]} Rxe1+ {[%emt 0:00:32]} 32. Rxe1 {[%emt 0:00:03]} Qc7 {[%emt 0:01:59]} 33. Re7 {[%emt 0:00:36]} 1-0

[Event "Guimaraes Open 2019"]
[Site "Guimaraes"]
[Date "2019.08.29"]
[Round "3.6"]
[White "Abdurramane, Danial Germano"]
[Black "Chueca Forcen, Alberto"]
[Result "0-1"]
[ECO "D04"]
[WhiteElo "1405"]
[BlackElo "2355"]
[Annotator "ChessBase"]
[PlyCount "46"]
[EventDate "2019.08.28"]
[EventType "swiss"]
[EventCountry "POR"]
[SourceTitle "playchess.com"]
[Source "ChessBase"]
[SourceQuality "1"]
[TimeControl "5400+30"]

1. d4 {[%emt 0:00:00]} d5 {[%emt 0:01:43]} 2. Nf3 {[%emt 0:00:00]} Nf6 {[%emt 0:00:14]} 3. e3 {[%emt 0:00:23]} c5 {[%emt 0:00:26]} 4. Bd3 {[%emt 0:01:00]} Nc6 {[%emt 0:00:10]} 5. O-O {[%emt 0:02:35]} e6 {[%emt 0:00:07]} 6. b3 {[%emt 0:00:33]} Bd6 {[%emt 0:00:29]} 7. Bb2 {[%emt 0:00:35]} Qc7 {[%emt 0:02:42]} 8. a3 {[%emt 0:01:33]} Bd7 {[%emt 0:03:40]} 9. Nbd2 {[%emt 0:01:32]} e5 {[%emt 0:00:44]} 10. dxc5 {[%emt 0:09:12]} Bxc5 {[%emt 0:00:28]} 11. e4 {[%emt 0:00:55]} d4 {[%emt 0:05:21]} 12. b4 {[%emt 0:08:04]} Be7 {[%emt 0:01:12]} 13. c3 {[%emt 0:10:12]} dxc3 {[%emt 0:09:03]} 14. Bxc3 {[%emt 0:01:27]} Rd8 {[%emt 0:00:49]} 15. Rc1 {[%emt 0:09:40]} Qb8 {[%emt 0:01:11]} 16. Bb5 {[%emt 0:05:24]} Nd4 {[%emt 0:06:10]} 17. Bxd4 {[%emt 0:03:27]} exd4 {[%emt 0:01:58]} 18. Nxd4 {[%emt 0:01:18]} O-O {[%emt 0:01:50]} 19. Re1 {[%emt 0:04:26]} Bg4 {[%emt 0:04:11]} 20. f3 {[%emt 0:08:09]} Rxd4 {[%emt 0:02:29]} 21. fxg4 {[%emt 0:00:08]} Qf4 {[%emt 0:01:03]} 22. Re2 {[%emt 0:06:16]} Nxg4 {[%emt 0:00:58]} 23. g3 {[%emt 0:02:18]} Qg5 {[%emt 0:00:48]} 0-1

[Event "Guimaraes Open 2019"]
[Site "Guimaraes"]
[Date "2019.08.29"]
[Round "3.8"]
[White "Silva, Jose Lucas Ferreira"]
[Black "Nieves Cabanes, Jose Manuel"]
[Result "0-1"]
[ECO "C54"]
[WhiteElo "1261"]
[BlackElo "2311"]
[Annotator "ChessBase"]
[PlyCount "142"]
[EventDate "2019.08.28"]
[EventType "swiss"]
[EventCountry "POR"]
[SourceTitle "playchess.com"]
[Source "ChessBase"]
[SourceQuality "1"]
[TimeControl "5400+30"]

1. e4 {[%emt 0:00:00]} e5 {[%emt 0:00:00]} 2. Nf3 {[%emt 0:00:05]} Nc6 {[%emt 0:00:00]} 3. d4 {[%emt 0:00:13]} exd4 {[%emt 0:00:20]} 4. Bc4 {[%emt 0:00:53]} Bc5 {[%emt 0:01:50]} 5. c3 {[%emt 0:02:05]} Nf6 {[%emt 0:01:03]} 6. cxd4 {[%emt 0:01:09]} Bb4+ {[%emt 0:00:07]} 7. Bd2 {[%emt 0:00:11]} Bxd2+ {[%emt 0:00:18]} 8. Nbxd2 {[%emt 0:00:08]} d5 {[%emt 0:00:17]} 9. exd5 {[%emt 0:00:35]} Nxd5 {[%emt 0:00:06]} 10. Qb3 {[%emt 0:03:30]} Nce7 {[%emt 0:03:06]} 11. O-O {[%emt 0:00:47]} O-O {[%emt 0:00:04]} 12. Ne4 {[%emt 0:00:48]} Nb6 {[%emt 0:01:47]} 13. Bd3 {[%emt 0:03:29]} Be6 {[%emt 0:04:55]} 14. Qc2 {[%emt 0:01:46]} h6 {[%emt 0:00:50]} 15. Nc5 {[%emt 0:01:09]} Bd5 {[%emt 0:01:03]} 16. Be4 {[%emt 0:00:45]} Rb8 {[%emt 0:01:08]} 17. Rac1 {[%emt 0:03:25]} Re8 {[%emt 0:03:57]} 18. Rfe1 {[%emt 0:01:39]} c6 {[%emt 0:03:40]} 19. Re2 {[%emt 0:02:49]} Bxe4 {[%emt 0:10:19]} 20. Rxe4 {[%emt 0:06:07]} Ned5 {[%emt 0:01:13]} 21. Rxe8+ {[%emt 0:02:10]} Qxe8 {[%emt 0:02:04]} 22. Re1 {[%emt 0:00:46]} Qd8 {[%emt 0:00:48]} 23. a3 {[%emt 0:01:09]} Nc8 {[%emt 0:03:24]} 24. Qf5 {[%emt 0:05:50]} Nd6 {[%emt 0:00:38]} 25. Qd7 {[%emt 0:01:29]} Qxd7 {[%emt 0:02:35]} 26. Nxd7 {[%emt 0:00:16]} Rd8 {[%emt 0:00:15]} 27. Nc5 {[%emt 0:00:36]} b6 {[%emt 0:03:52]} 28. Nd3 {[%emt 0:01:47]} f6 {[%emt 0:01:00]} 29. g3 {[%emt 0:04:58]} Kf7 {[%emt 0:00:40]} 30. Kg2 {[%emt 0:00:14]} g5 {[%emt 0:01:44]} 31. g4 {[%emt 0:00:40]} h5 {[%emt 0:01:08]} 32. h3 {[%emt 0:00:23]} h4 {[%emt 0:00:42]} 33. Kh2 {[%emt 0:03:45]} a5 {[%emt 0:04:07]} 34. b3 {[%emt 0:05:08]} Nb5 {[%emt 0:02:43]} 35. a4 {[%emt 0:02:33]} Nbc7 {[%emt 0:00:04]} 36. Rc1 {[%emt 0:00:21]} Rd6 {[%emt 0:00:21]} 37. Nb2 {[%emt 0:01:39]} Re6 {[%emt 0:04:33]} 38. Re1 {[%emt 0:03:30]} b5 {[%emt 0:02:29]} 39. Nd3 {[%emt 0:01:57]} Rxe1 {[%emt 0:00:56]} 40. Nfxe1 {[%emt 0:00:38]} Ne6 {[%emt 0:00:11]} 41. Nc2 {[%emt 0:01:22]} Nc3 {[%emt 0:03:03]} 42. Nb2 {[%emt 0:01:54]} Ne2 {[%emt 0:02:30]} 43. d5 {[%emt 0:01:26]} cxd5 {[%emt 0:02:08]} 44. axb5 {[%emt 0:00:07]} Ke7 {[%emt 0:01:39]} 45. Ne3 {[%emt 0:02:48]} Kd6 {[%emt 0:01:05]} 46. Na4 {[%emt 0:00:28]} N2d4 {[%emt 0:02:09]} 47. b6 {[%emt 0:00:40]} Nf4 {[%emt 0:03:28]} 48. Ng2 {[%emt 0:05:49]} Nxb3 {[%emt 0:06:38]} 49. Nxf4 {[%emt 0:00:29]} gxf4 {[%emt 0:00:03]} 50. Kg2 {[%emt 0:00:09]} Nd2 {[%emt 0:00:46]} 51. f3 {[%emt 0:00:22]} Kc6 {[%emt 0:00:55]} 52. Kf2 {[%emt 0:00:13]} Nc4 {[%emt 0:00:12]} 53. Ke2 {[%emt 0:00:11]} Nxb6 {[%emt 0:00:14]} 54. Nxb6 {[%emt 0:00:07]} Kxb6 {[%emt 0:00:09]} 55. Kd3 {[%emt 0:00:08]} Kc5 {[%emt 0:00:12]} 56. Kc3 {[%emt 0:00:10]} a4 {[%emt 0:00:25]} 57. Kb2 {[%emt 0:00:06]} Kc4 {[%emt 0:00:26]} 58. Kc2 {[%emt 0:00:09]} a3 {[%emt 0:00:06]} 59. Kb1 {[%emt 0:00:06]} Kc3 {[%emt 0:00:33]} 60. Ka2 {[%emt 0:00:25]} d4 {[%emt 0:00:20]} 61. g5 fxg5 {[%emt 0:00:11]} 62. Ka1 {[%emt 0:00:19]} Kc2 {[%emt 0:00:10]} 63. Ka2 {[%emt 0:00:19]} d3 {[%emt 0:00:06]} 64. Ka1 {[%emt 0:00:05]} d2 {[%emt 0:00:08]} 65. Ka2 {[%emt 0:00:04]} d1=Q {[%emt 0:00:26]} 66. Kxa3 {[%emt 0:00:07]} Qb1 {[%emt 0:00:12]} 67. Ka4 {[%emt 0:00:05]} Kc3 {[%emt 0:00:06]} 68. Ka5 {[%emt 0:00:07]} Kc4 {[%emt 0:00:04]} 69. Ka6 {[%emt 0:00:08]} Kc5 {[%emt 0:00:04]} 70. Ka7 {[%emt 0:00:11]} Kc6 {[%emt 0:00:05]} 71. Ka8 {[%emt 0:00:04]} Qb7# {[%emt 0:00:04]} 0-1

[Event "Guimaraes Open 2019"]
[Site "Guimaraes"]
[Date "2019.08.29"]
[Round "3.12"]
[White "Barrento, Jorge Maria Lopes"]
[Black "Lopez Mulet, Inigo"]
[Result "0-1"]
[ECO "A45"]
[WhiteElo "1745"]
[BlackElo "2397"]
[Annotator "RC"]
[PlyCount "90"]
[EventDate "2019.08.28"]
[EventType "swiss"]
[EventCountry "POR"]
[SourceTitle "playchess.com"]
[Source "ChessBase"]
[SourceQuality "1"]
[TimeControl "5400+30"]

1. d4 {[%emt 0:00:00]} Nf6 {[%emt 0:00:00]} 2. f3 {[%emt 0:00:26]} d5 {[%emt 0:00:08]} 3. e4 {[%emt 0:00:02]} dxe4 {[%emt 0:03:53]} 4. Nc3 {[%emt 0:00:56]} exf3 {[%emt 0:03:00]} 5. Nxf3 {[%emt 0:01:50]} Bg4 {[%emt 0:00:17]} 6. h3 {[%emt 0:00:38]} Bh5 {[%emt 0:00:26]} 7. g4 {[%emt 0:00:11]} Bg6 {[%emt 0:00:04]} 8. Ne5 {[%emt 0:00:02]} Nbd7 {[%emt 0:04:52]} 9. Nxg6 {[%emt 0:03:25]} hxg6 {[%emt 0:00:05]} 10. Bg2 {[%emt 0:00:11]} c6 {[%emt 0:01:25]} 11. Qd3 {[%emt 0:01:35]} e6 {[%emt 0:01:35]} 12. Bg5 {[%emt 0:01:57]} Be7 {[%emt 0:01:55]} 13. O-O-O {[%emt 0:03:56]} Nb6 {[%emt 0:01:20]} 14. Rhf1 {[%emt 0:03:44]} Nbd5 {[%emt 0:05:28]} 15. Nxd5 {[%emt 0:08:09]} cxd5 {[%emt 0:00:23]} 16. Qb5+ {[%emt 0:03:02]} Qd7 {[%emt 0:00:09]} 17. Qxd7+ {[%emt 0:00:18]} Nxd7 {[%emt 0:01:51]} 18. Bxe7 {[%emt 0:00:50]} Kxe7 {[%emt 0:00:05]} 19. Rde1 {[%emt 0:00:40]} Nb6 {[%emt 0:00:45]} 20. Re3 {[%emt 0:06:36]} g5 {[%emt 0:04:49]} 21. b3 {[%emt 0:03:35]} Rad8 {[%emt 0:01:10]} 22. a4 {[%emt 0:01:24]} Rd6 {[%emt 0:01:10]} 23. Rf5 {[%emt 0:01:30]} f6 {[%emt 0:01:56]} 24. a5 {[%emt 0:05:47]} Kd7 {[%emt 0:01:46]} 25. Rf2 {[%emt 0:00:37]} Nc8 {[%emt 0:00:06]} 26. Bf1 {[%emt 0:00:18]} a6 {[%emt 0:00:41]} 27. b4 {[%emt 0:01:03]} Ne7 {[%emt 0:00:37]} 28. Bd3 {[%emt 0:02:17]} Rc8 {[%emt 0:06:00]} 29. Kb2 {[%emt 0:06:29]} Ke8 {[%emt 0:02:21]} 30. h4 {[%emt 0:02:29]} gxh4 {[%emt 0:00:27]} 31. Rh3 {[%emt 0:00:27]} Kf7 {[%emt 0:03:34]} 32. Rxh4 {[%emt 0:00:56]} Nc6 {[%emt 0:00:08]} 33. c3 {[%emt 0:01:04]} e5 {[%emt 0:00:08]} 34. Bf5 {[%emt 0:05:40]} Rc7 {[%emt 0:02:00]} 35. dxe5 {[%emt 0:01:13]} Nxe5 {[%emt 0:00:10]} 36. g5 {[%emt 0:02:34]} fxg5 {[%emt 0:00:32]} 37. Bc2+ {[%emt 0:02:43]} Rf6 {[%emt 0:00:41]} 38. Rxf6+ {[%emt 0:01:18]} Kxf6 {[%emt 0:00:05]} 39. Rd4 {[%emt 0:00:09]} Ke6 {[%emt 0:00:48]} 40. Bb3 {[%emt 0:00:57]} Rd7 {[%emt 0:00:06]} 41. Rd1 {[%emt 0:03:18]} g4 {[%emt 0:00:31]} 42. Rg1 {[%emt 0:01:43]} Kf5 {[%emt 0:00:30]} 43. Rf1+ {[%emt 0:05:50]} Nf3 {[%emt 0:00:12]} 44. c4 {[%emt 0:03:20]} dxc4 {[%emt 0:01:01]} 45. Bxc4 {[%emt 0:00:15]} Kf4 {[%emt 0:00:49]} 0-1

[Event "Guimaraes Open 2019"]
[Site "Guimaraes"]
[Date "2019.08.29"]
[Round "3.14"]
[White "Fernandes, Rui Filipe Santos"]
[Black "Lara Lopez, Sergio"]
[Result "0-1"]
[ECO "A40"]
[WhiteElo "1434"]
[BlackElo "2226"]
[Annotator "ChessBase"]
[PlyCount "54"]
[EventDate "2019.08.28"]
[EventType "swiss"]
[EventCountry "POR"]
[SourceTitle "playchess.com"]
[Source "ChessBase"]
[SourceQuality "1"]
[TimeControl "5400+30"]

1. d4 e6 2. Bf4 {[%emt 0:01:51]} Nf6 {[%emt 0:00:06]} 3. e3 {[%emt 0:00:42]} b6 {[%emt 0:00:24]} 4. Nf3 {[%emt 0:03:50]} Bb7 {[%emt 0:00:06]} 5. Nbd2 {[%emt 0:01:11]} Be7 {[%emt 0:04:33]} 6. h3 c5 {[%emt 0:01:09]} 7. c3 {[%emt 0:05:12]} Nc6 {[%emt 0:04:03]} 8. Bd3 {[%emt 0:09:37]} d6 {[%emt 0:00:44]} 9. Qc2 {[%emt 0:11:57]} Rc8 {[%emt 0:00:17]} 10. O-O {[%emt 0:22:04]} O-O {[%emt 0:00:43]} 11. Bg5 {[%emt 0:07:57]} h6 {[%emt 0:00:10]} 12. Bh4 {[%emt 0:06:12]} cxd4 {[%emt 0:00:22]} 13. exd4 {[%emt 0:01:52]} Nb4 {[%emt 0:00:11]} 14. Qb1 {[%emt 0:00:21]} Nxd3 {[%emt 0:00:07]} 15. Qxd3 {[%emt 0:06:58]} Nd5 {[%emt 0:00:09]} 16. Bg3 {[%emt 0:01:28]} Qd7 {[%emt 0:00:54]} 17. Rfe1 {[%emt 0:03:24]} Rce8 {[%emt 0:02:40]} 18. a4 {[%emt 0:03:15]} a6 {[%emt 0:01:01]} 19. Nf1 {[%emt 0:05:52]} f5 {[%emt 0:00:38]} 20. Qe2 {[%emt 0:01:30]} Bf6 {[%emt 0:00:11]} 21. Ne3 {[%emt 0:03:23]} Nxe3 {[%emt 0:01:06]} 22. fxe3 Re7 {[%emt 0:00:37]} 23. Nh4 {[%emt 0:01:23]} Bxh4 {[%emt 0:00:18]} 24. Bxh4 {[%emt 0:00:02]} g5 {[%emt 0:00:02]} 25. Bg3 {[%emt 0:00:38]} Rg7 {[%emt 0:00:53]} 26. Qh5 {[%emt 0:00:28]} Rf6 {[%emt 0:00:37]} 27. Re2 {[%emt 0:01:12]} Rfg6 {[%emt 0:00:37]} 0-1